fUST/lending_fUST_20250130
["ID","MTS","AMOUNT","RATE_DAILY","PERIOD"]
[350961464,1738249846743,-151.0,0.00022264,7]
[350961465,1738249846754,-151.0,0.00022264,7]
[350961466,1738249846765,-151.0,0.00022264,7]
[350961467,1738249846776,-151.0,0.00022264,7]
[350961468,1738249846788,-151.0,0.00022264,7]
[350961469,1738249846799,-151.0,0.00022264,7]
[350961470,1738249846810,-151.0,0.00022264,7]
[350961471,1738249846824,-151.0,0.00022264,7]
[350961472,1738249846835,-151.0,0.00022264,7]
[350961473,1738249846847,-151.0,0.00022264,7]
[350961474,1738249846858,-151.0,0.00022264,7]
[350961475,1738249846868,-151.0,0.00022264,7]
[350961476,1738249846877,-151.0,0.00022264,7]
[350961477,1738249846887,-151.0,0.00022264,7]
[350961478,1738249846897,-151.0,0.00022264,7]
[350961479,1738249846906,-151.0,0.00022264,7]
[350961480,1738249846916,-151.0,0.00022264,7]
[350961481,1738249846925,-151.0,0.00022264,7]
[350961482,1738249846938,-151.0,0.00022264,7]
[350961483,1738249846947,-151.0,0.00022264,7]
[350961484,1738249846957,-151.0,0.00022264,7]
[350961485,1738249846967,-151.0,0.00022264,7]
[350961486,1738249846976,-230.178724,0.00022264,7]
[350961487,1738249846986,-151.0,0.00022264,7]
[350961488,1738249846995,-151.0,0.00022264,7]
[350961489,1738249847005,-151.0,0.00022264,7]
[350961490,1738249847014,-151.0,0.00022264,7]
[350961491,1738249847023,-247.685621,0.00022264,7]
[350961492,1738249847033,-247.685621,0.00022264,7]
[350961493,1738249847042,-247.685621,0.00022264,7]
[350961494,1738249847052,-247.685621,0.00022264,7]
[350961495,1738249847212,-247.685621,0.00022264,7]
[350961496,1738249847229,-247.685621,0.00022264,7]
[350961497,1738249847239,-247.685621,0.00022264,7]
[350961498,1738249847248,-247.685621,0.00022264,7]
[350961499,1738249847258,-247.685621,0.00022264,7]
[350961500,1738249847268,-247.685621,0.00022264,7]
[350961501,1738249847277,-247.685621,0.00022264,7]
[350961502,1738249847287,-247.685621,0.00022264,7]
[350961503,1738249847297,-247.685621,0.00022264,7]
[350961504,1738249847307,-247.685621,0.00022264,7]
[350961505,1738249847316,-247.685621,0.00022264,7]
[350961506,1738249847326,-247.685621,0.00022264,7]
[350961507,1738249847336,-247.685621,0.00022264,7]
[350961508,1738249847345,-247.685621,0.00022264,7]
[350961509,1738249847355,-247.685621,0.00022264,7]
[350961510,1738249847366,-247.685623,0.00022264,7]
[350961511,1738249847376,-151.0,0.00022264,7]
[350961512,1738249847385,-151.0,0.00022264,7]
[350961513,1738249847395,-151.0,0.00022264,7]
[350961514,1738249847404,-151.0,0.00022264,7]
[350961515,1738249847413,-151.0,0.00022264,7]
[350961516,1738249847423,-509.33,0.00022266,7]
[350961517,1738249847435,-151.0,0.00022271,7]
[350961518,1738249847444,-151.0,0.00022271,7]
[350961519,1738249847453,-151.0,0.00022271,7]
[350961520,1738249847463,-153.118521,0.00022271,7]
[350961521,1738249847472,-151.0,0.00022271,7]
[350961522,1738249847482,-151.0,0.00022271,7]
[350961523,1738249847492,-151.0,0.00022271,7]
[350961524,1738249847501,-157.756808,0.00022271,7]
[350961525,1738249847511,-500.0,0.00022271,14]
[350961526,1738249847520,-151.0,0.00022271,7]
[350961527,1738249847530,-151.0,0.00022271,7]
[350961528,1738249847539,-151.0,0.00022271,7]
[350961529,1738249847548,-216.199138,0.00022271,7]
[350961530,1738249847557,-151.0,0.00022271,7]
[350961531,1738249847566,-151.0,0.00022271,7]
[350961532,1738249847575,-151.0,0.00022271,7]
[350961533,1738249847585,-151.0,0.00022271,7]
[350961534,1738249847594,-151.0,0.00022271,7]
[350961535,1738249847604,-150.14,0.00022271,14]
[350961536,1738249847614,-500.0,0.00022271,2]
[350961537,1738249847623,-150.14,0.00022271,14]
[350961538,1738249847632,-151.0,0.00022271,7]
[350961539,1738249847641,-151.0,0.00022271,7]
[350961540,1738249847650,-151.0,0.00022271,7]
[350961541,1738249847659,-151.0,0.00022271,7]
[350961542,1738249847669,-151.0,0.00022271,7]
[350961543,1738249847681,-150.14,0.00022271,14]
[350961544,1738249847690,-150.14,0.00022271,14]
[350961545,1738249847699,-723.0,0.00022271,3]
[350961546,1738249847709,-500.0,0.00022271,14]
[350961547,1738249847719,-150.14,0.00022271,2]
[350961548,1738249847728,-150.14,0.00022271,14]
[350961549,1738249847737,-150.14,0.00022271,14]
[350961550,1738249847746,-500.0,0.00022273,2]
[350961551,1738249847756,-500.0,0.00022273,2]
[350961552,1738249847765,-500.0,0.00022273,2]
[350961553,1738249847774,-502.44865218,0.00022273,2]
[350961554,1738249847783,-500.0,0.00022273,2]
[350961555,1738249847792,-500.0,0.00022273,2]
[350961556,1738249847802,-500.0,0.00022273,2]
[350961557,1738249847811,-500.0,0.00022273,2]
[350961558,1738249847826,-500.0,0.00022273,2]
[350961559,1738249847836,-239.81990394,0.00022273,2]
[350961560,1738249847846,-1143252.48728908,0.00022275,61]
[350961561,1738249847948,-21.89469877,0.00019174,2]
[350961562,1738249878375,585.0,0.0002045,120]
[350961563,1738250031349,195.180202,0.00013699,2]
[350961564,1738250062128,10000.0,0.0001514,2]
[350961565,1738250068459,10000.0,0.0001514,2]
[350961566,1738250079043,8178.99,0.00018,30]
[350961570,1738250493955,200.713073,0.00013973,2]
[350961572,1738250561393,1090.0,0.00020453,120]
[350961573,1738250610298,-443.2479123,0.00017188,2]
[350961574,1738250610322,-485.4681486,0.00017721,2]
[350961575,1738250610350,-157.508078,0.00018043,2]
[350961576,1738250610374,-24900.0,0.00018139,2]
[350961577,1738250610400,-167.09010658,0.00018169,2]
[350961578,1738250610423,-8102.7739574,0.00018175,2]
[350961579,1738250610453,-252.976,0.00018269,2]
[350961580,1738250610480,-500.0,0.00018464,2]
[350961581,1738250610504,-167.09010653,0.0001884,2]
[350961582,1738250610527,-176.9798005,0.00019074,2]
[350961583,1738250610553,-500.0,0.00019171,2]
[350961584,1738250610577,-503.46899069,0.00019171,2]
[350961585,1738250610603,-500.0,0.00019171,2]
[350961586,1738250610630,-500.0,0.00019171,2]
[350961587,1738250610654,-500.0,0.00019171,2]
[350961588,1738250610678,-500.0,0.00019171,2]
[350961589,1738250610703,-500.0,0.00019171,2]
[350961590,1738250610732,-500.0,0.00019171,2]
[350961591,1738250610758,-500.0,0.00019171,2]
[350961592,1738250610784,-500.0,0.00019171,2]
[350961593,1738250610809,-500.0,0.00019171,2]
[350961594,1738250610833,-500.0,0.00019171,2]
[350961595,1738250610857,-500.0,0.00019171,2]
[350961596,1738250610882,-500.0,0.00019171,2]
[350961597,1738250610906,-500.0,0.00019172,2]
[350961598,1738250610932,-500.0,0.00019172,2]
[350961599,1738250610957,-500.0,0.00019172,2]
[350961600,1738250610985,-500.0,0.00019172,2]
[350961601,1738250611009,-500.0,0.00019172,2]
[350961602,1738250611033,-500.0,0.00019172,2]
[350961603,1738250611059,-500.0,0.00019172,2]
[350961604,1738250611083,-503.40167936,0.00019172,2]
[350961605,1738250611106,-511.52375448,0.00019172,2]
[350961606,1738250611130,-512.55693462,0.00019172,2]
[350961607,1738250611154,-507.87858283,0.00019172,2]
[350961608,1738250611179,-515.96219541,0.00019172,2]
[350961609,1738250611203,-500.0,0.00019172,2]
[350961610,1738250611228,-372.36604059,0.00019172,2]
[350961611,1738250611251,-500.0,0.00019172,2]
[350961612,1738250611276,-500.0,0.00019172,2]
[350961613,1738250611299,-507.41137883,0.00019172,2]
[350961614,1738250611325,-500.0,0.00019172,2]
[350961615,1738250611348,-505.23648896,0.00019172,2]
[350961616,1738250611372,-509.88046329,0.00019172,2]
[350961617,1738250611396,-500.0,0.00019172,2]
[350961618,1738250611545,-508.32934745,0.00019172,2]
[350961619,1738250611576,-512.7187502,0.00019172,2]
[350961620,1738250611600,-505.37191104,0.00019172,2]
[350961621,1738250611625,-509.3161397,0.00019172,2]
[350961622,1738250611650,-335.14943626,0.00019172,2]
[350961623,1738250611676,-506.58560089,0.00019172,2]
[350961624,1738250611700,-260.6587676,0.00019172,2]
[350961625,1738250611726,-514.19772155,0.00019172,2]
[350961626,1738250611751,-500.0,0.00019172,2]
[350961627,1738250611776,-320.2650989,0.00019172,2]
[350961628,1738250611804,-1166.84,0.00019172,2]
[350961629,1738250611830,-500.0,0.00019172,2]
[350961630,1738250611855,-609.56360429,0.00019172,2]
[350961631,1738250611881,-243.80203318,0.00019172,2]
[350961632,1738250611906,-500.0,0.00019172,2]
[350961633,1738250611931,-156.64,0.00019172,2]
[350961634,1738250611954,-355.73933758,0.00019173,2]
[350961635,1738250611980,-500.0,0.00019173,2]
[350961636,1738250612005,-345.91555094,0.00019173,2]
[350961637,1738250612029,-500.0,0.00019173,2]
[350961638,1738250612055,-510.4095393,0.00019173,2]
[350961639,1738250612082,-606.29413628,0.00019173,2]
[350961640,1738250612118,-504.06376285,0.00019173,2]
[350961641,1738250612147,-506.84226342,0.00019173,2]
[350961642,1738250612174,-505.56368739,0.00019173,2]
[350961643,1738250612200,-508.55332126,0.00019173,2]
[350961644,1738250612226,-512.54691454,0.00019173,2]
[350961645,1738250612252,-506.06834345,0.00019173,2]
[350961646,1738250612279,-500.0,0.00019173,2]
[350961647,1738250612303,-512.88986942,0.00019173,2]
[350961648,1738250612330,-510.98026897,0.00019173,2]
[350961649,1738250612355,-517.55490453,0.00019173,2]
[350961650,1738250612379,-512.04147349,0.00019173,2]
[350961651,1738250612404,-500.0,0.00019173,2]
[350961652,1738250612429,-507.44792533,0.00019173,2]
[350961653,1738250612454,-515.43985974,0.00019173,2]
[350961654,1738250612481,-510.25435663,0.00019173,2]
[350961655,1738250612507,-492.18030788,0.00019173,2]
[350961656,1738250612533,-507.94245372,0.00019173,2]
[350961657,1738250612558,-504.20449591,0.00019173,2]
[350961658,1738250612583,-513.58464927,0.00019173,2]
[350961659,1738250612608,-648.48394815,0.00019173,2]
[350961660,1738250612633,-261.12284286,0.00019173,2]
[350961661,1738250612660,-517.30202944,0.00019173,2]
[350961662,1738250612689,-500.0,0.00019173,2]
[350961663,1738250612718,-500.0,0.00019173,2]
[350961664,1738250612744,-500.0,0.00019173,2]
[350961665,1738250612768,-500.0,0.00019173,2]
[350961666,1738250612794,-500.0,0.00019173,2]
[350961667,1738250612821,-514.44391393,0.00019173,2]
[350961668,1738250612846,-203.70760921,0.00019173,2]
[350961669,1738250612870,-500.0,0.00019173,2]
[350961670,1738250612897,-500.0,0.00019173,2]
[350961671,1738250612921,-500.0,0.00019173,2]
[350961672,1738250612947,-500.0,0.00019173,2]
[350961673,1738250612977,-500.0,0.00019173,2]
[350961674,1738250613004,-654.67,0.00019173,2]
[350961675,1738250613029,-419.42587184,0.00019173,2]
[350961676,1738250613061,-500.0,0.00019173,2]
[350961677,1738250613087,-500.0,0.00019173,2]
[350961678,1738250613119,-500.0,0.00019173,2]
[350961679,1738250613149,-500.0,0.00019173,2]
[350961680,1738250613180,-500.0,0.00019173,2]
[350961681,1738250613208,-500.0,0.00019173,2]
[350961682,1738250613240,-500.0,0.00019173,2]
[350961683,1738250613266,-500.0,0.00019173,2]
[350961684,1738250613293,-500.0,0.00019173,2]
[350961685,1738250613319,-500.0,0.00019173,2]
[350961686,1738250613344,-500.0,0.00019173,2]
[350961687,1738250613370,-500.0,0.00019173,2]
[350961688,1738250613396,-500.0,0.00019173,2]
[350961689,1738250613421,-500.0,0.00019173,2]
[350961690,1738250613449,-834.11,0.00019173,2]
[350961691,1738250613477,-500.0,0.00019173,2]
[350961692,1738250613504,-632.89,0.00019173,2]
[350961693,1738250613529,-500.0,0.00019173,2]
[350961694,1738250613556,-500.0,0.00019173,2]
[350961695,1738250613581,-624.71,0.00019173,2]
[350961696,1738250613608,-500.0,0.00019173,2]
[350961697,1738250613635,-500.0,0.00019173,2]
[350961698,1738250613662,-500.0,0.00019173,2]
[350961699,1738250613687,-500.0,0.00019173,2]
[350961700,1738250613714,-510.4776223,0.00019173,2]
[350961701,1738250613745,-311.52069259,0.00019173,2]
[350961702,1738250613774,-3157.66,0.00019173,2]
[350961703,1738250613804,-376.30010556,0.00019173,2]
[350961704,1738250613831,-500.0,0.00019173,2]
[350961705,1738250613857,-500.0,0.00019173,2]
[350961706,1738250613885,-500.0,0.00019173,2]
[350961707,1738250613913,-500.0,0.00019173,2]
[350961708,1738250613941,-500.0,0.00019173,2]
[350961709,1738250613969,-500.0,0.00019173,2]
[350961710,1738250613999,-500.0,0.00019173,2]
[350961711,1738250614030,-500.0,0.00019173,2]
[350961712,1738250614060,-1325.45,0.00019173,2]
[350961713,1738250614088,-478.10530123,0.00019174,2]
[350961714,1738250614114,-517.43354033,0.00019174,2]
[350961715,1738250614140,-511.94851244,0.00019174,2]
[350961716,1738250614166,-500.0,0.00019174,2]
[350961717,1738250614190,-500.0,0.00019174,2]
[350961718,1738250614214,-500.0,0.00019174,2]
[350961719,1738250614243,-500.0,0.00019174,2]
[350961720,1738250614267,-500.0,0.00019174,2]
[350961721,1738250614292,-500.52785161,0.00019174,2]
[350961722,1738250614317,-503.18845023,0.00019174,2]
[350961723,1738250614344,-487.99849591,0.00019174,2]
[350961724,1738250614369,-500.0,0.00019174,2]
[350961725,1738250614397,-501.86160833,0.00019174,2]
[350961726,1738250614424,-500.0,0.00019174,2]
[350961727,1738250614449,-500.0,0.00019174,2]
[350961728,1738250614477,-500.0,0.00019174,2]
[350961729,1738250614502,-513.53795024,0.00019174,2]
[350961730,1738250614529,-505.83065756,0.00019174,2]
[350961731,1738250614554,-515.46699391,0.00019174,2]
[350961732,1738250614580,-500.0,0.00019174,2]
[350961733,1738250614610,-500.0,0.00019174,2]
[350961734,1738250614638,-503.50218226,0.00019174,2]
[350961735,1738250614664,-500.20412328,0.00019174,2]
[350961736,1738250614691,-500.0,0.00019174,2]
[350961737,1738250614716,-1085.35,0.00019174,2]
[350961738,1738250614747,-500.0,0.00019174,2]
[350961739,1738250614774,-513.64464823,0.00019174,2]
[350961740,1738250614800,-517.43,0.00019174,2]
[350961741,1738250614825,-523.50836409,0.00019174,2]
[350961742,1738250614984,-500.0,0.00019174,2]
[350961743,1738250615009,-500.0,0.00019175,2]
[350961744,1738250615034,-409.41023254,0.00019175,2]
[350961750,1738250846158,195.180202,0.00013699,2]
[350961762,1738250952134,-8531.07258386,0.000177,2]
[350961835,1738251033183,-276.6047141,0.00018209,2]
[350961837,1738251033194,-500.0,0.00018464,2]
[350961839,1738251033204,-113.03836182,0.00018464,2]
[350961841,1738251033217,-82.96163818,0.00018464,2]
[350961842,1738251033228,-450.43715606,0.000189,2]
[350961844,1738251033238,-300.0,0.00018929,2]
[350961845,1738251033247,-13233.86350247,0.0001893,2]
[350961847,1738251033257,-536.94,0.00019171,2]
[350961848,1738251033267,-500.0,0.00019171,2]
[350961849,1738251033277,-500.0,0.00019171,2]
[350961851,1738251033286,-500.0,0.00019171,2]
[350961852,1738251033297,-500.0,0.00019171,2]
[350961854,1738251033307,-500.0,0.00019171,2]
[350961855,1738251033316,-331.10752716,0.00019171,2]
[350961857,1738251033326,-500.0,0.00019171,2]
[350961858,1738251033335,-500.0,0.00019171,2]
[350961859,1738251033344,-500.0,0.00019171,2]
[350961861,1738251033353,-500.0,0.00019171,2]
[350961862,1738251033363,-500.0,0.00019171,2]
[350961864,1738251033374,-500.0,0.00019171,2]
[350961866,1738251033384,-608.97090996,0.00019171,2]
[350961868,1738251033394,-500.0,0.00019171,2]
[350961870,1738251033403,-502.69108418,0.00019171,2]
[350961872,1738251033413,-500.0,0.00019171,2]
[350961875,1738251033423,-500.0,0.00019171,2]
[350961877,1738251033435,-500.0,0.00019171,2]
[350961880,1738251033445,-500.0,0.00019171,2]
[350961882,1738251033454,-500.0,0.00019171,2]
[350961885,1738251033464,-500.0,0.00019171,2]
[350961887,1738251033474,-500.0,0.00019172,2]
[350961890,1738251033485,-500.0,0.00019172,2]
[350961892,1738251033495,-500.0,0.00019172,2]
[350961895,1738251033506,-500.0,0.00019172,2]
[350961897,1738251033518,-500.0,0.00019173,2]
[350961900,1738251033530,-500.0,0.00019173,2]
[350961902,1738251033541,-500.0,0.00019173,2]
[350961905,1738251033551,-500.0,0.00019173,2]
[350961907,1738251033562,-500.0,0.00019173,2]
[350961910,1738251033572,-507.25171621,0.00019173,2]
[350961912,1738251033582,-500.0,0.00019173,2]
[350961915,1738251033592,-500.0,0.00019173,2]
[350961916,1738251033603,-500.0,0.00019173,2]
[350961919,1738251033614,-500.0,0.00019173,2]
[350961922,1738251033624,-500.0,0.00019173,2]
[350961924,1738251033634,-3026.09,0.00019173,2]
[350961926,1738251033643,-1118.22,0.00019173,2]
[350961928,1738251033654,-601.10698318,0.00019173,2]
[350961929,1738251033663,-529.18,0.00019173,2]
[350961931,1738251033673,-500.0,0.00019173,2]
[350961932,1738251033689,-627.32235646,0.00019173,2]
[350961934,1738251033699,-500.0,0.00019173,2]
[350961935,1738251033708,-1270.22,0.00019173,2]
[350961937,1738251033719,-500.0,0.00019173,2]
[350961938,1738251033729,-500.0,0.00019173,2]
[350961940,1738251033739,-500.0,0.00019174,2]
[350961941,1738251033748,-502.43124892,0.00019174,2]
[350961943,1738251033759,-517.10988162,0.00019174,2]
[350961944,1738251033769,-500.0,0.00019174,2]
[350961946,1738251033780,-500.0,0.00019175,2]
[350961948,1738251033791,-500.0,0.00019176,2]
[350961949,1738251033801,-500.0,0.00019178,2]
[350961950,1738251033811,-163.162327,0.00019178,2]
[350961952,1738251033821,-500.0,0.00019307,2]
[350961953,1738251033832,-500.0,0.00019308,2]
[350961955,1738251033843,-582.93,0.00019308,2]
[350961956,1738251033853,-195.31609083,0.00019308,2]
[350961958,1738251033862,-500.0,0.00019308,2]
[350961959,1738251033872,-500.0,0.00019308,2]
[350961961,1738251033882,-500.0,0.00019308,2]
[350961962,1738251033892,-225.62,0.00019308,2]
[350961964,1738251033902,-500.0,0.00019308,2]
[350961965,1738251033912,-500.0,0.00019308,2]
[350961967,1738251033921,-500.0,0.00019308,2]
[350961969,1738251033932,-500.0,0.00019308,2]
[350961970,1738251033942,-425.29,0.00019308,2]
[350961972,1738251033951,-500.0,0.00019308,2]
[350961973,1738251033961,-500.0,0.00019308,2]
[350961975,1738251033970,-500.0,0.00019309,2]
[350961976,1738251033980,-500.0,0.00019309,2]
[350961978,1738251033990,-500.0,0.00019309,2]
[350961979,1738251034000,-627.39,0.00019309,2]
[350961981,1738251034009,-220.66,0.00019309,2]
[350961982,1738251034019,-500.0,0.00019309,2]
[350961984,1738251034028,-500.0,0.00019309,2]
[350961985,1738251034038,-799.36,0.00019309,2]
[350961987,1738251034048,-374.35,0.00019309,2]
[350961988,1738251034057,-500.0,0.00019309,2]
[350961990,1738251034066,-500.0,0.00019309,2]
[350961991,1738251034076,-510.19,0.00019309,2]
[350961993,1738251034086,-500.0,0.00019309,2]
[350961994,1738251034097,-500.0,0.00019309,2]
[350961996,1738251034107,-500.0,0.0001931,2]
[350961997,1738251034117,-500.0,0.0001931,2]
[350961999,1738251034127,-500.0,0.0001931,2]
[350962000,1738251034136,-479.17384899,0.0001931,2]
[350962002,1738251034148,-623.22527444,0.0001931,2]
[350962003,1738251034159,-3026.09,0.0001931,2]
[350962005,1738251034170,-1118.22,0.0001931,2]
[350962007,1738251034182,-1270.22,0.0001931,2]
[350962008,1738251034191,-500.0,0.0001931,2]
[350962010,1738251034203,-500.0,0.00019311,2]
[350962011,1738251034213,-1085.35,0.00019311,2]
[350962013,1738251034222,-500.0,0.00019311,2]
[350962014,1738251034233,-398.29158653,0.00019311,2]
[350962016,1738251034243,-500.0,0.00019313,2]
[350962017,1738251034253,-150.0,0.000194,2]
[350962019,1738251034263,-500.0,0.00019445,2]
[350962020,1738251034272,-500.0,0.00019445,2]
[350962022,1738251034282,-500.0,0.00019445,2]
[350962023,1738251034293,-500.0,0.00019445,2]
[350962025,1738251034302,-500.0,0.00019445,2]
[350962027,1738251034312,-500.0,0.00019445,2]
[350962028,1738251034321,-390.64,0.00019445,2]
[350962029,1738251034330,-417.73,0.00019445,2]
[350962031,1738251034340,-500.0,0.00019446,2]
[350962032,1738251034349,-218.8,0.00019446,2]
[350962034,1738251034359,-500.0,0.00019446,2]
[350962036,1738251034369,-627.39,0.00019446,2]
[350962037,1738251034379,-500.0,0.00019446,2]
[350962039,1738251034389,-799.36,0.00019446,2]
[350962040,1738251034399,-500.0,0.00019446,2]
[350962042,1738251034409,-214.88,0.00019446,2]
[350962043,1738251034418,-500.0,0.00019446,2]
[350962045,1738251034428,-500.0,0.00019446,2]
[350962046,1738251034438,-500.0,0.00019447,2]
[350962048,1738251034447,-3026.09,0.00019447,2]
[350962049,1738251034457,-1118.22,0.00019447,2]
[350962051,1738251034466,-1270.22,0.00019447,2]
[350962053,1738251034486,-500.0,0.00019447,2]
[350962054,1738251034497,-1085.35,0.00019448,2]
[350962056,1738251034506,-500.0,0.0001945,2]
[350962058,1738251034516,-500.0,0.00019582,2]
[350962059,1738251034526,-424.88,0.00019582,2]
[350962061,1738251034535,-183.09,0.00019582,2]
[350962062,1738251034546,-540.29,0.00019582,2]
[350962064,1738251034556,-495.22,0.00019582,2]
[350962065,1738251034566,-500.0,0.00019582,2]
[350962067,1738251034576,-548.82,0.00019583,2]
[350962077,1738251034754,-500.0,0.00019583,2]
[350962079,1738251034766,-627.39,0.00019583,2]
[350962080,1738251034776,-500.0,0.00019583,2]
[350962081,1738251034786,-799.36,0.00019583,2]
[350962082,1738251034795,-500.0,0.00019583,2]
[350962083,1738251034804,-500.0,0.00019583,2]
[350962084,1738251034814,-500.0,0.00019583,2]
[350962085,1738251034825,-500.0,0.00019584,2]
[350962086,1738251034835,-3026.09,0.00019584,2]
[350962087,1738251034845,-1118.22,0.00019584,2]
[350962088,1738251034855,-1270.22,0.00019584,2]
[350962089,1738251034865,-500.0,0.00019584,2]
[350962090,1738251034875,-1085.35,0.00019585,2]
[350962091,1738251034884,-499.0,0.00019586,2]
[350962092,1738251034893,-500.82,0.00019587,2]
[350962093,1738251034903,-500.0,0.00019719,2]
[350962094,1738251034912,-500.0,0.00019719,2]
[350962095,1738251034923,-468.04,0.0001972,2]
[350962096,1738251034934,-627.39,0.0001972,2]
[350962097,1738251034944,-500.0,0.0001972,2]
[350962098,1738251034954,-799.36,0.0001972,2]
[350962099,1738251034963,-500.0,0.0001972,2]
[350962100,1738251034974,-500.0,0.0001972,2]
[350962101,1738251034983,-540.46,0.0001972,2]
[350962103,1738251034994,-451.99975296,0.00019721,2]
[350962104,1738251035004,-3026.09,0.00019721,2]
[350962106,1738251035014,-1118.22,0.00019721,2]
[350962108,1738251035024,-1270.22,0.00019721,2]
[350962110,1738251035034,-248.88,0.00019721,2]
[350962112,1738251035043,-1085.35,0.00019722,2]
[350962114,1738251035051,-274.57960848,0.00019762,2]
[350962116,1738251035061,-3456.6383131,0.0001981,2]
[350962118,1738251035071,-500.0,0.00019824,2]
[350962120,1738251035080,-500.0,0.00019824,2]
[350962122,1738251035090,-500.0,0.00019856,2]
[350962124,1738251035099,-500.0,0.00019856,2]
[350962126,1738251035112,-627.39,0.00019857,2]
[350962128,1738251035121,-353.61,0.00019857,2]
[350962130,1738251035130,-799.36,0.00019857,2]
[350962132,1738251035144,-500.0,0.00019857,2]
[350962134,1738251035163,-500.0,0.00019857,2]
[350962136,1738251035172,-3026.09,0.00019858,2]
[350962138,1738251035184,-1118.22,0.00019858,2]
[350962140,1738251035195,-1270.22,0.00019858,2]
[350962142,1738251035205,-1085.35,0.00019859,2]
[350962144,1738251035214,-1732.88464619,0.000199,2]
[350962146,1738251035223,-10529.02367611,0.0001999,7]
[350962148,1738251035232,-500.0,0.00019993,2]
[350962150,1738251035243,-500.0,0.00019993,2]
[350962152,1738251035252,-627.39,0.00019994,2]
[350962154,1738251035261,-799.36,0.00019994,2]
[350962155,1738251035271,-338.64,0.00019994,2]
[350962157,1738251035281,-500.0,0.00019994,2]
[350962159,1738251035290,-3026.09,0.00019995,2]
[350962161,1738251035300,-1118.22,0.00019995,2]
[350962163,1738251035310,-1270.22,0.00019995,2]
[350962166,1738251035319,-1085.35,0.00019996,2]
[350962168,1738251035329,-419.0,0.0002,3]
[350962170,1738251035339,-419.0,0.0002,3]
[350962171,1738251035348,-160.0,0.0002,2]
[350962173,1738251035358,-500.0,0.00020009,2]
[350962175,1738251035368,-4643.18287249,0.00020069,2]
[350962177,1738251035377,-500.0,0.0002013,2]
[350962179,1738251035386,-500.0,0.0002013,2]
[350962181,1738251035397,-627.39,0.00020131,2]
[350962183,1738251035406,-799.36,0.00020131,2]
[350962185,1738251035416,-500.0,0.00020131,2]
[350962187,1738251035425,-3026.09,0.00020132,2]
[350962189,1738251035438,-1118.22,0.00020132,2]
[350962191,1738251035447,-1270.22,0.00020132,2]
[350962193,1738251035456,-1085.35,0.00020133,2]
[350962195,1738251035465,-4360.94784955,0.00020234,2]
[350962197,1738251035475,-221.57560205,0.00020266,2]
[350962199,1738251035484,-500.0,0.00020266,2]
[350962201,1738251035494,-500.0,0.00020266,2]
[350962203,1738251035503,-500.0,0.00020266,2]
[350962205,1738251035513,-362.60953966,0.00020266,2]
[350962207,1738251035523,-500.0,0.00020266,2]
[350962209,1738251035532,-500.0,0.00020266,2]
[350962211,1738251035542,-500.0,0.00020266,2]
[350962213,1738251035551,-500.0,0.00020266,2]
[350962215,1738251035561,-500.0,0.00020266,2]
[350962217,1738251035570,-500.0,0.00020266,2]